Cogmind - Beta 13 @@@ ROGUE MODE // 2024.04.10 @ 16:17:09 Player: CanadianCogs Result: Destroyed by G-47 Trooper with Particle Gun Performance ------------- Evolutions (2) 1000 Regions Visited (5) 1000 Robots Destroyed (30) 150 Value Destroyed (1199) 1199 Prototype IDs (2) 40 Alien Tech Used (0) 0 Bonus (241) 241 TOTAL SCORE: 3630 Bonus ------- High Alert Combat Kills 41 Entered Garrisons 200 Cogmind --------- Core Integrity 0/550 Matter 19/300 Energy 92/100 System Corruption 0% Temperature Cool (11) Movement Walking (130) Location -8/Garrison Parts ------- > --- POWER (1) -------- (None) > --- PROPULSION (4) --- Improved Titanium Leg Improved Titanium Leg > --- UTILITY (4) ------ Advanced Visual Processing Unit Signal Interpreter Hacking Suite System Shield > --- WEAPON (2) ------- (None) > --- INVENTORY (5) ---- Cryofiber Web Improved Heat Sink Transmission Jammer Hardened Medium Armor Plating Remote Datajack Peak State ------------ > --- POWER ------------ Light Deuterium Engine > --- PROPULSION ------- Improved Titanium Leg Improved Titanium Leg Improved Titanium Leg Improved Titanium Leg > --- UTILITY ---------- Advanced Visual Processing Unit Signal Interpreter Reaction Control System Hacking Suite > --- WEAPON ----------- Minigun High-powered Shotgun > --- INVENTORY -------- Cryofiber Web Improved Heat Sink Transmission Jammer Hardened Medium Armor Plating Remote Datajack [Rating: 36] Favorites ----------- Power Light Deuterium Engine Engine Light Deuterium Engine Power Core Light Nuclear Core Propulsion Improved Titanium Leg Treads Advanced Treads Leg Improved Titanium Leg Wheel Wheel Hover Unit Hover Unit Flight Unit Flight Unit Utility Heat Sink Device Heat Sink Processor Signal Interpreter Hackware Hacking Suite Protection Hardened Light Armor Plating Weapon Advanced Beam Rifle Energy Gun Advanced Beam Rifle Ballistic Gun Light Assault Rifle Special Weapon Mining Laser Build | -11 -10 -9 -9 -8 -8 ------- Run | Yrd Mat Mat Min Mat Gar Slots Evolved 4 | . . 2 . 2 . Power . | . . . . . . Propulsion 2 | . . 2 . . . Utility 2 | . . . . 2 . Weapon . | . . . . . . Parts Attached 78 | 5 9 19 . 45 . Power 10 | 1 2 2 . 5 . Engine 9 | 1 2 2 . 4 . Core 1 | . . . . 1 . Reactor . | . . . . . . Propulsion 31 | 2 2 10 . 17 . Treads 7 | . . 4 . 3 . Leg 4 | . . . . 4 . Wheel 4 | 2 2 . . . . Hover 1 | . . 1 . . . Flight 15 | . . 5 . 10 . Utility 21 | . 3 3 . 15 . Device 11 | . 3 2 . 6 . Storage . | . . . . . . Processor 3 | . . 1 . 2 . Hackware 2 | . . . . 2 . Protection 5 | . . . . 5 . Artifact . | . . . . . . Weapon 16 | 2 2 4 . 8 . Energy Gun 5 | . 2 2 . 1 . Energy Cannon . | . . . . . . Ballistic Gun 7 | 2 . . . 5 . Ballistic Cannon . | . . . . . . Launcher . | . . . . . . Special Weapon 4 | . . 2 . 2 . Impact Weapon . | . . . . . . Slashing Weapon . | . . . . . . Piercing Weapon . | . . . . . . Special Melee Weapon . | . . . . . . Unidentified Prototypes 2 | . . 1 . 1 . Parts Lost 21 | . 2 2 8 5 4 Power 5 | . 1 . 1 2 1 Propulsion 7 | . . 1 4 . 2 Utility 3 | . . . 1 2 . Weapon 6 | . 1 1 2 1 1 Highest Loss Streak 8 | . 2 1 8 2 2 To Critical Strikes . | . . . . . . Average Slot Usage (%) 79 | . 78 90 57 79 75 Engine 8 | . 12 11 6 6 2 Treads 3 | . . 7 . 3 . Leg 7 | . . . . 14 33 Wheel 5 | . 27 . . . . Flight 12 | . . 28 22 7 . Device 9 | . 9 18 6 6 . Processor 7 | . . 3 8 11 18 Hackware 4 | . . . . 9 18 Protection 1 | . . . . 4 . Energy Gun 7 | . 11 19 . . . Ballistic Gun 7 | . 16 . . 11 3 Special Weapon 1 | . . . 12 . . Naked Turns 37 | . . . 37 . . Heaviest Build 28 | 5 10 11 8 28 8 Greatest Support 88 | 26 26 88 16 80 80 Greatest Overweight (x) 8 | 1 . 3 . 8 . Average Overweight (x) . | . . . . . . Largest Inventory Capacity 5 | 5 5 5 5 5 5 Average Capacity 5 | 5 5 5 5 5 5 Most Carried 5 | 3 2 5 5 5 5 Average Carried 3 | . 1 4 5 4 5 Final Capacity 5 | 5 5 5 5 5 5 Final Carried 5 | . . 5 5 5 5 Class Distribution -------------------- 49% | Mutant 18% | Scavenger-Mutant 14% | Sprinter 9% | Hacker-Mutant 9% | Scavenger-Sprinter Dominant Class ---------------- Mutant | -10/Materials Scavenger-Mutant | -9/Materials Sprinter | -9/Mines Mutant | -8/Materials Hacker-Mutant | -8/Garrison Resources | -11 -10 -9 -9 -8 -8 ----------- Run | Yrd Mat Mat Min Mat Gar Matter Collected 865 | 242 134 165 30 294 . Remotely . | . . . . . . Salvage Created 1040 | . 337 540 . 163 . Parts 61 | . 13 35 . 13 . Haulers Intercepted . | . . . . . . Recyclers Shooed 3 | . . 1 . 2 . Parts Field Recycled . | . . . . . . Retrieved Matter . | . . . . . . Parts Self-Destructed . | . . . . . . Prevented . | . . . . . . Kills | -11 -10 -9 -9 -8 -8 ------- Run | Yrd Mat Mat Min Mat Gar Combat Hostiles Destroyed 29 | . 8 12 2 7 . Guns 26 | . 7 12 . 7 . Cannons 2 | . . . 2 . . Classes Destroyed 8 | . 1 5 1 1 . Recycler 1 | . . 1 . . . Operator 1 | . . 1 . . . Watcher 1 | . . 1 . . . Swarmer 6 | . . 3 . 3 . Grunt 16 | . 8 6 . 2 . Sentry 4 | . . 3 . 1 . Hunter 1 | . . . . 1 . Assembled 2 | . . . 2 . . Best Kill Streak 5 | . 3 5 2 2 . Combat Bots Only 5 | . 3 5 2 2 . Max Kills in Single Turn 1 | . 1 1 1 1 . Gunslinging . | . . . . . . Exploded . | . . . . . . Melee . | . . . . . . Uniques/NPCs Destroyed . | . . . . . . Combat | -11 -10 -9 -9 -8 -8 -------- Run | Yrd Mat Mat Min Mat Gar Hostile Shots Fired 442 | . 52 50 38 220 82 Missed 140 | . 8 23 10 66 33 Damage Taken 3776 | . 517 333 452 1777 697 Core 1088 | . 175 81 272 387 173 Absorbed by Shields . | . . . . . . Core Remaining (%) 47 | 100 30 . 11 . . Volleys Fired 105 | . 33 29 7 35 1 Largest 2 | . 2 2 2 2 1 Hottest 200 | . 90 122 200 50 25 Shots Fired 183 | . 66 58 12 46 1 Gun 169 | . 66 58 . 44 1 Cannon . | . . . . . . Launcher . | . . . . . . Special 14 | . . . 12 2 . Kinetic 86 | . 41 . . 44 1 Thermal 95 | . 25 58 12 . . Explosive . | . . . . . . Electromagnetic . | . . . . . . Robot Hit Streak 11 | . 10 4 2 11 . Robot Miss Streak 5 | . 2 4 2 5 . Penetration Max . | . . . . . . Secondary Targets 5 | . 1 3 . 1 . Max Gunslinging Chain 1 | . 1 1 . 1 . Shots Hit Robots 116 | . 49 31 3 33 . Core Hits 53 | . 18 16 3 16 . Critical Kills . | . . . . . . Critical Parts Destroyed 1 | . . . . 1 . Critical Strikes 8 | . 2 5 . 1 . Burn 7 | . 2 5 . . . Destroy 1 | . . . . 1 . Melee Attacks . | . . . . . . Impact . | . . . . . . Slashing . | . . . . . . Piercing . | . . . . . . Sneak Attacks . | . . . . . . Combat Hostiles . | . . . . . . Follow-up Attacks . | . . . . . . Damage Inflicted 1866 | . 461 680 116 609 . Guns 1732 | . 461 680 . 591 . Cannons . | . . . . . . Explosions . | . . . . . . Melee . | . . . . . . Ramming 38 | . . . 20 18 . Kinetic 836 | . 245 . . 591 . Thermal 992 | . 216 680 96 . . Explosive . | . . . . . . Electromagnetic . | . . . . . . Impact . | . . . . . . Slashing . | . . . . . . Piercing . | . . . . . . Highest Corruption 5 | . 5 . 2 . . Average Corruption 3 | . 4 . 2 . . Corruption Purged . | . . . . . . Corruption Blocked . | . . . . . . Effects 8 | . 6 . 2 . . Message Errors 3 | . 1 . 2 . . Matter Fused 2 | . 2 . . . . Heat Flow Errors 2 | . 2 . . . . Data Loss (minor) 1 | . 1 . . . . Overload Shots . | . . . . . . Overflow Damage . | . . . . . . Projectiles . | . . . . . . Explosions . | . . . . . . Melee . | . . . . . . Knockbacks . | . . . . . . Impact . | . . . . . . Kinetic . | . . . . . . Secondary . | . . . . . . Self-Inflicted Damage 10 | . . . 10 . . Shots . | . . . . . . Rammed 2 | . . . 2 . . Targets Rammed 5 | . . . 2 3 . Kicked 3 | . . . . 3 . Crushed . | . . . . . . Highest Temperature 339 | . 175 339 244 42 . Average Temperature 69 | . 31 92 94 13 . Received Heat Transfer 1474 | . 312 153 100 612 297 Siege Activations . | . . . . . . Robots Corrupted . | . . . . . . Combat Hostiles . | . . . . . . Parts Fried . | . . . . . . Impact Corruptions . | . . . . . . Robots Melted 1 | . 1 . . . . Combat Hostiles 1 | . 1 . . . . Parts Melted 4 | . 1 3 . . . Heat Transferred 2558 | . 730 1628 200 . . Parts Sabotaged . | . . . . . . Parts Stolen . | . . . . . . Parts Stripped . | . . . . . . Power Chain Reactions . | . . . . . . Alert | -11 -10 -9 -9 -8 -8 ------- Run | Yrd Mat Mat Min Mat Gar Peak Influence 670 | . 249 670 308 439 234 Initial 261 | . . 104 261 89 164 Average 233 | . 107 321 263 256 201 Maximum Alert Level 2 | . 1 2 1 2 1 Low Security (%) 38 | 100 86 37 . 20 31 Level 1 44 | . 13 21 100 61 68 Level 2 16 | . . 40 . 17 . Level 3 . | . . . . . . Level 4 . | . . . . . . Level 5 . | . . . . . . High Security . | . . . . . . Max Security . | . . . . . . Squads Dispatched 16 | . 3 9 . 4 . Investigation 14 | . 3 8 . 3 . Extermination . | . . . . . . Reinforcement 2 | . . 1 . 1 . Assault . | . . . . . . Garrison . | . . . . . . Intercept . | . . . . . . Searches Triggered . | . . . . . . Construction Impeded . | . . . . . . Haulers Reinforced . | . . . . . . Active Scanning Responses . | . . . . . . Cargo Convoy Interrupts . | . . . . . . Stealth | -11 -10 -9 -9 -8 -8 --------- Run | Yrd Mat Mat Min Mat Gar Distress Signals 2 | . . . . 2 . Communications Jammed . | . . . . . . Distress Signals . | . . . . . . Times Spotted 88 | . 8 32 8 25 15 Peak Tracking Total 12 | . 3 9 3 7 12 Tactical Retreats 14 | . . 5 3 5 1 Traps | -11 -10 -9 -9 -8 -8 ------- Run | Yrd Mat Mat Min Mat Gar Traps Triggered 4 | . 3 . . 1 . Indirectly . | . . . . . . Trap Hack Attempts . | . . . . . . Triggered . | . . . . . . Disarmed . | . . . . . . Reprogrammed . | . . . . . . Reused . | . . . . . . Traps Extracted . | . . . . . . Installed . | . . . . . . Triggered . | . . . . . . Objects Rigged 2 | . . 2 . . . Machines | -11 -10 -9 -9 -8 -8 ---------- Run | Yrd Mat Mat Min Mat Gar Machines Disabled 2 | . . 1 . . 1 Max in Single Turn 1 | . . 1 . . 1 Garrison Relay 1 | . . . . . 1 Machines Repaired . | . . . . . . Machines Dismantled . | . . . . . . Machines Sabotaged 1 | . . 1 . . . Overloaded Fab Kills . | . . . . . . Hacking | -11 -10 -9 -9 -8 -8 --------- Run | Yrd Mat Mat Min Mat Gar Machines Accessed 17 | . 5 8 . 4 . Terminals 12 | . 3 8 . 1 . Fabricators . | . . . . . . Repair Stations 1 | . 1 . . . . Recycling Units 1 | . 1 . . . . Scanalyzers 2 | . . . . 2 . Garrison Access 1 | . . . . 1 . Total Hacks 68 | . 18 35 . 15 . Successful 37 | . 7 21 . 9 . Failed 30 | . 11 13 . 6 . Catastrophic 2 | . 2 . . . . Database Lockouts 1 | . . 1 . . . Manual 55 | . 15 27 . 13 . Terminals 49 | . 10 35 . 4 . Fabricators . | . . . . . . Repair Stations 4 | . 4 . . . . Recycling Units 4 | . 4 . . . . Scanalyzers 8 | . . . . 8 . Garrison Access 3 | . . . . 3 . Terminal Hacks 6 | . 1 5 . . . Record 4 | . 1 3 . . . Emergency Access Points 1 | . . 1 . . . Locate Traps 1 | . . 1 . . . Fabricator Hacks . | . . . . . . Repair Station Hacks 1 | . 1 . . . . Scan Component 1 | . 1 . . . . Recycling Unit Hacks 1 | . 1 . . . . Report Inventory 1 | . 1 . . . . Scanalyzer . | . . . . . . Garrison Access Hacks 2 | . . . . 2 . Unlock Access 1 | . . . . 1 . Coupler Status 1 | . . . . 1 . Unauthorized Hacks 26 | . 4 16 . 6 . Terminals 21 | . 2 16 . 3 . Track 5 | . . 4 . 1 . Botnet 6 | . 1 4 . 1 . Detonate 1 | . . 1 . . . Disrupt 3 | . . 3 . . . Operators 3 | . 1 1 . 1 . Sabotage 1 | . . 1 . . . Search 2 | . . 2 . . . Fabricators . | . . . . . . Repair Stations 1 | . 1 . . . . Mechanics 1 | . 1 . . . . Recycling Units 1 | . 1 . . . . Mask 1 | . 1 . . . . Scanalyzers 3 | . . . . 3 . Researchers 2 | . . . . 2 . Extract 1 | . . . . 1 . Garrison Access . | . . . . . . Data Cores Recovered 1 | . . 1 . . . Used 1 | . . 1 . . . Hacking Detections 14 | . 5 6 . 3 . Full Trace Events 12 | . 5 5 . 2 . Feedback Events 1 | . 1 . . . . Corruption 1 | . 1 . . . . Feedback Blocked . | . . . . . . Robot Schematics Acquired . | . . . . . . Robots Built . | . . . . . . Authchips . | . . . . . . Time . | . . . . . . Total Robot Build Rating . | . . . . . . Part Schematics Acquired 1 | . . . . 1 . Parts Built . | . . . . . . Authchips . | . . . . . . Time . | . . . . . . Total Part Build Rating . | . . . . . . Parts Repaired . | . . . . . . Time . | . . . . . . Parts Recycled . | . . . . . . Recycled Matter . | . . . . . . Retrieved Matter . | . . . . . . Retrieved Components . | . . . . . . Parts Scanalyzed . | . . . . . . Part Schematics Acquired . | . . . . . . Parts Damaged . | . . . . . . Bothacking | -11 -10 -9 -9 -8 -8 ------------ Run | Yrd Mat Mat Min Mat Gar Used RIF Installer . | . . . . . . Robots Hacked 1 | . . . . 1 . Non-combat . | . . . . . . Combat 1 | . . . . 1 . Robot Hacks Applied 1 | . . . . 1 . parse_system 1 | . . . . 1 . Relay Couplers Released 4 | . . . . . 4 Machine Destruction 4 | . . . . . 4 Fabnet Peak Effective % . | . . . . . . Robots Rewired . | . . . . . . Allies Hacked . | . . . . . . Hacks Repelled . | . . . . . . Allies | -11 -10 -9 -9 -8 -8 -------- Run | Yrd Mat Mat Min Mat Gar Total Allies . | . . . . . . Largest Group . | . . . . . . Highest-Rated Group . | . . . . . . Highest-Rated Ally . | . . . . . . Total Orders . | . . . . . . Ally Attacks . | . . . . . . Total Damage . | . . . . . . Kills . | . . . . . . Allies Corrupted . | . . . . . . Allies Melted . | . . . . . . Intel | -11 -10 -9 -9 -8 -8 ------- Run | Yrd Mat Mat Min Mat Gar Robot Analysis Total . | . . . . . . Derelict Logs Recovered 1 | . . . 1 . . Drone Launches . | . . . . . . Drone Recoveries . | . . . . . . Exploration | -11 -10 -9 -9 -8 -8 ------------- Run | Yrd Mat Mat Min Mat Gar Turns Passed 1938 | 44 384 495 200 649 166 Spaces Moved 1865 | 39 228 577 365 535 121 Core 176 | 16 . 8 119 33 . Treads 74 | . . 35 . 39 . Legs 314 | . . . . 193 121 Wheels 267 | 23 228 16 . . . Hover . | . . . . . . Flight 1034 | . . 518 246 270 . Fastest Speed 26 | 50 90 29 29 26 130 Average Speed 67 | 85 90 43 35 88 130 Slowest Speed 450 | 100 90 200 50 450 130 Overloaded Moves . | . . . . . . Propulsion Burnouts . | . . . . . . Robots Hopped 21 | . . 15 . 6 . Cave-ins Triggered . | . . . . . . Exploration Rate (%) 36 | 3 35 63 56 28 34 Regions Visited 5 Branch Regions 1 Pre-discovered Areas . | . . . . . . Known Exits Taken 3 | . . 1 1 1 . Unknown Exits Taken 2 | 1 1 . . . . Scrap Searched 1 | . . . 1 . . Spaces Dug 2 | . . . 2 . . Terrain Destroyed 5 | . . . 5 . . Melee . | . . . . . . Projectile 5 | . . . 5 . . AOE . | . . . . . . Terrain Rammed . | . . . . . . Walls Destroyed . | . . . . . . Machines Disabled . | . . . . . . Actions | -11 -10 -9 -9 -8 -8 --------- Run | Yrd Mat Mat Min Mat Gar Total 2337 | 50 350 751 398 658 130 Wait 204 | . 67 103 24 2 8 Move 1824 | 38 227 549 364 525 121 Hop 16 | . . 12 . 4 . Pick Up 48 | 6 8 19 . 15 . Fast Attach 30 | . . 9 . 21 . Attach 36 | 5 6 5 . 20 . Detach 10 | . 2 . . 8 . Swap 13 | . 3 6 . 4 . Drop 46 | 1 4 19 1 21 . Fire 105 | . 33 29 7 35 1 Melee . | . . . . . . Ram 2 | . . . 2 . . Kick 3 | . . . . 3 . Crush . | . . . . . . Escape Stasis . | . . . . . . Rewire . | . . . . . . Trap . | . . . . . . Miscellaneous . | . . . . . . Route ------- -11/Scrapyard -10/Materials (discovered 2 exits: *Mat / [*Min]) -9/Materials (discovered 2 exits: *Min x2) -9/Mines -8/Materials (discovered 2 exits: Sto / Gar) -8/Garrison History --------- Turn | Location | Event 12 | -11/Scrapyard | Discovered new exit (range 16) 45 | -11/Scrapyard | Entered Materials 240 | -10/Materials | Core integrity fell below 50% 249 | -10/Materials | Discovered new exit (range 14) 307 | -10/Materials | Build established: Mutant 357 | -10/Materials | Discovered new exit (range 4) 429 | -10/Materials | Entered another Materials area 429 | -9/Materials | Evolved 2 slots: Propulsion x2 610 | -9/Materials | Central database locked down 709 | -9/Materials | Discovered new exit (range 15) 910 | -9/Materials | Discovered new exit (range 14) 917 | -9/Materials | Identified exit to Mines 924 | -9/Materials | Entered Mines 925 | -9/Mines | Assembled infested the area 929 | -9/Mines | Learned location of 1 exit from Materials 930 | -9/Mines | Assisted by a Guerilla fighting off Assembled 958 | -9/Mines | Discovered new exit (range 13) 961 | -9/Mines | Identified exit to Materials 1049 | -9/Mines | Core integrity fell below 50% 1070 | -9/Mines | Core integrity fell below 20% 1077 | -9/Mines | Lost 8 parts (1p4n1u2w) 1124 | -9/Mines | Entered Materials 1124 | -8/Materials | Evolved 2 slots: Utility x2 1125 | -8/Materials | Identified exit to Storage 1669 | -8/Materials | Core integrity fell below 50% 1773 | -8/Materials | Identified exit to Garrison 1773 | -8/Materials | Entered Garrison 1810 | -8/Garrison | Triggered checkpoint 1815 | -8/Garrison | Garrison Relay disabled 1855 | -8/Garrison | Core integrity fell below 20% 1904 | -8/Garrison | Triggered checkpoint 1914 | -8/Garrison | Triggered checkpoint 1939 | -8/Garrison | Destroyed by G-47 Trooper with Particle Gun Last Messages --------------- Relay Coupler [Hunter] (9) Relay Coupler [NC] (16) Relay Coupler [Hunter] (9) Relay Coupler [Behemoth] (7) LOCATION=GARRISON GOAL=ESCAPE 01810_ Beams of light sweep through the air. An alarm sounds. 01813_ Lgt. Deuterium Engine destroyed. 01815_ Garrison Relay disabled. 01815_ Relay Coupler [Grunt] tumbles out of relay unit. 01815_ Relay Coupler [Sentry] tumbles out of relay unit. 01815_ Relay Coupler [Duelist] tumbles out of relay unit. 01815_ Relay Coupler [Swarmer] tumbles out of relay unit. 01841_ Critical hit (Burn: +37). 01848_ Minigun destroyed. 01904_ Beams of light sweep through the air. An alarm sounds. 01904_ Imp. Titanium Leg destroyed. 01914_ Beams of light sweep through the air. An alarm sounds. 01914_ Imp. Titanium Leg destroyed. 01926_ G-47 Trooper destroyed. Map ----- +----------------------------------------------------+ | ?????????????????????????????????????????????????? | | ?????????????????????????????????????????????????? | | ?????????????????????????????????????????????????? | | ?????????????????????????????????????????????????? | | ?????????????????????????????????????????????????? | | ?????????????????????????????????????????????????? | | ???????????????????????# ????????????????????????? | | ??????????????????????? ????????????????????????? | | ??????????????????????? ????????????????????????? | | ??????????????????????? ????????????????????????? | | ??????????????????????# #???????????????????????? | | ??????????????????????# #???????????????????????? | | ?????????????????????? #???????????????????????? | | ?????????????????????? #???????????????????????? | | ??????????????????????# #???????????????????????? | | ??????????????????????# #???????????????????????? | | ??????????????????????# #???????????????????????? | | ??????????????????????# #???????????????????????? | | ??????????????????????# #???????????????????????? | | ??????????????????????# #???????????????????????? | | ??????????????????????# #???????????????????????? | | ??????????????????????# #???????????????????????? | | ????????????########### ##################??????? | | ????????????# s ????? | | ????????????# g ????? | | ????????????# s ss @ ????? | | ????????????# g###+###s/########"""?????????????? | | ????????????# #?????# #???????????????????????? | | ?# ???????# #?????# #???????????????????????? | | ?# ???????# #?????# #???????????????????????? | | ?# ???????# #?????# #???????????????????????? | | ?# ^?####??# #?????# ???????????????????????? | | ?# ?# ?# #?????# #???????????????????????? | | ?# ## ##%[ #?????# #???????????????????????? | | ?# ! #?????# #???????????????????????? | | ?# #????? #???????????????????????? | | ?# #????? #???????????????????????? | | ?# ## ## #?????####???????????????????????? | | ?# ## ## #????????????????????????????????? | | ?" "????????????????????????????????? | | ?" "????????????????????????????????? | | ?" "????????????????????????????????? | | ?" "????????????????????????????????? | | ?# ^## ## #????????????????????????????????? | | ?# ## ## ######???????????????????????????? | | ?# #??????????????????????? | | ?# #??????????????????????? | | ?# ########?????????????????????????? | | ?## ## ######????????????????????????????????? | | ??# ## #?????????????????????????????????????? | +----------------------------------------------------+ Best States ------------- Heat Dissipation 48 Energy Generation 16 Energy Capacity 290 Matter Stores 300 Matter Capacity 300 Sight Range 20 Robot Scan Range 15 Terrain Scan Density 10 Jamming Range 12 Base Temperature (-) 100 Armor Coverage 600 Evasion (%) 64 Recoil Reduction 4 Offensive Hacking 10 Defensive Hacking 10 Item Schematics ----------------- Imp. Aluminum Leg | -8/Materials | Extracted Robot Schematics ------------------ None Fabricated ------------ Nothing Alien Tech Used ----------------- None Achievements -------------- Party Time Challenges ------------ None Game ------ Seed UltimateBladeDevice Manual? 0 Play Time 01:06:45 Cumulative 10.8 hours Start 2024.04.10 @ 14:59:40 End 2024.04.10 @ 16:17:09 Sessions 1 Manual Loads 0 Difficulty Rogue Special Mode None Game No. 13 Rogue 13 Adventurer 0 Explorer 0 Win Type - Total 0 Types 0/0/0/0/0/0/0/0/0 Lore% 8 Gallery% 17 Achievement% 18 Wizard Run 0 Options --------- Layout 0 ASCII 0 Keyboard 0 Movement Mouse Keybinds 0 Fullscreen 2 Font 18/SmallcapsGlow Map View 38x25 Zoom Use 99% Tactical HUD 1 Map Filters NONE Filters NONE Steam 1 RUN: 9d599fd9-824a-479e-8bcd-267f0ba83818